[Event "Betsys MČR v online bleskovém šachu 2021"]
[Site "Chess.com"]
[Date "2021.04.17"]
[Round "8"]
[White "martin1804"]
[Black "Jakuboss22005"]
[Result "1-0"]
[WhiteElo "2272"]
[BlackElo "2066"]
[TimeControl "180+1"]
[EndTime "10:21:49 PDT"]
[Termination "Uživatel martin1804 zvítězil na čas"]

1. d4 {[%clk 0:03:00.9]} 1... Nf6 {[%clk 0:02:58.9]} 2. Nf3 {[%clk 0:03:01]}
2... g6 {[%clk 0:02:58]} 3. Bf4 {[%clk 0:03:01.1]} 3... Bg7 {[%clk 0:02:57.6]}
4. e3 {[%clk 0:03:01.3]} 4... O-O {[%clk 0:02:57.7]} 5. h3 {[%clk 0:03:01.4]}
5... d6 {[%clk 0:02:57.8]} 6. Be2 {[%clk 0:03:01.4]} 6... b6 {[%clk 0:02:56.8]}
7. O-O {[%clk 0:03:01.2]} 7... Bb7 {[%clk 0:02:57.1]} 8. a4 {[%clk 0:03:00]}
8... a6 {[%clk 0:02:57]} 9. Nbd2 {[%clk 0:02:57.3]} 9... Nbd7 {[%clk 0:02:57]}
10. a5 {[%clk 0:02:50.5]} 10... b5 {[%clk 0:02:56.1]} 11. c4 {[%clk 0:02:45.5]}
11... bxc4 {[%clk 0:02:47.7]} 12. Nxc4 {[%clk 0:02:46.4]} 12... c5 {[%clk
0:02:45.5]} 13. Bh2 {[%clk 0:02:45]} 13... Ne4 {[%clk 0:02:40.6]} 14. Qa4 {[%clk
0:02:14.1]} 14... Rc8 {[%clk 0:02:34.9]} 15. Rfd1 {[%clk 0:02:07.8]} 15... Bc6
{[%clk 0:02:21.6]} 16. Qa3 {[%clk 0:02:03.8]} 16... Bb5 {[%clk 0:02:18.8]} 17.
d5 {[%clk 0:01:53.6]} 17... Rb8 {[%clk 0:02:03.7]} 18. Rab1 {[%clk 0:01:51.8]}
18... Qc7 {[%clk 0:01:54.3]} 19. Bf1 {[%clk 0:01:50.1]} 19... Rfc8 {[%clk
0:01:46.1]} 20. g4 {[%clk 0:01:21.2]} 20... Rb7 {[%clk 0:01:23.5]} 21. Qd3
{[%clk 0:01:14.6]} 21... Nef6 {[%clk 0:01:17.7]} 22. g5 {[%clk 0:01:13.7]} 22...
Ne8 {[%clk 0:01:12.8]} 23. Qe4 {[%clk 0:01:13.5]} 23... Nf8 {[%clk 0:00:55.2]}
24. Nb6 {[%clk 0:01:11.1]} 24... Bxf1 {[%clk 0:00:44.5]} 25. Rxf1 {[%clk
0:00:59.3]} 25... Rcb8 {[%clk 0:00:44]} 26. b4 {[%clk 0:00:58.3]} 26... cxb4
{[%clk 0:00:36]} 27. Rfc1 {[%clk 0:00:57.9]} 27... Qd8 {[%clk 0:00:33.6]} 28.
Rxb4 {[%clk 0:00:57.4]} 28... Nd7 {[%clk 0:00:30.4]} 29. Rc6 {[%clk 0:00:41.4]}
29... Bc3 {[%clk 0:00:24.7]} 30. Rxc3 {[%clk 0:00:38.9]} 30... Nc5 {[%clk
0:00:21.9]} 31. Qc2 {[%clk 0:00:29]} 31... Nc7 {[%clk 0:00:21.1]} 32. e4 {[%clk
0:00:22.3]} 32... Nb5 {[%clk 0:00:21]} 33. Re3 {[%clk 0:00:17.4]} 33... Rc7
{[%clk 0:00:16.1]} 34. e5 {[%clk 0:00:17.5]} 34... Nd7 {[%clk 0:00:06.8]} 35.
Qd2 {[%clk 0:00:13.9]} 35... dxe5 {[%clk 0:00:06.5]} 36. Nxe5 {[%clk 0:00:13.3]}
36... Nxe5 {[%clk 0:00:06.7]} 37. Bxe5 {[%clk 0:00:13.3]} 37... Nd6 {[%clk
0:00:07.4]} 38. h4 {[%clk 0:00:11.8]} 38... f6 {[%clk 0:00:05.2]} 39. gxf6
{[%clk 0:00:09.2]} 39... exf6 {[%clk 0:00:06.1]} 40. Bg3 {[%clk 0:00:09.3]}
40... Rbb7 {[%clk 0:00:03]} 41. Re6 {[%clk 0:00:09.6]} 41... Rd7 {[%clk
0:00:01.6]} 42. Nxd7 {[%clk 0:00:08.9]} 42... Rxd7 {[%clk 0:00:02.5]} 43. Rb6
{[%clk 0:00:08.4]} 1-0

[Event "Betsys MČR v online bleskovém šachu 2021"]
[Site "Chess.com"]
[Date "2021.04.17"]
[Round "8"]
[White "Evca64"]
[Black "JaraLinhart"]
[Result "1-0"]
[WhiteElo "2070"]
[BlackElo "1691"]
[TimeControl "180+1"]
[EndTime "10:21:49 PDT"]
[Termination "Uživatel Evca64 zvítězil na čas"]

1. e4 {[%clk 0:03:00.9]} 1... c6 {[%clk 0:02:54.5]} 2. d4 {[%clk 0:03:00.4]}
2... d5 {[%clk 0:02:54.3]} 3. exd5 {[%clk 0:03:00.7]} 3... cxd5 {[%clk
0:02:54.3]} 4. Bd3 {[%clk 0:03:00.9]} 4... Nf6 {[%clk 0:02:53.9]} 5. c3 {[%clk
0:03:00.6]} 5... Nc6 {[%clk 0:02:53.1]} 6. Bf4 {[%clk 0:02:59.9]} 6... e6 {[%clk
0:02:49]} 7. Nf3 {[%clk 0:02:57.7]} 7... h6 {[%clk 0:02:48.4]} 8. h3 {[%clk
0:02:57]} 8... Bd6 {[%clk 0:02:48.5]} 9. Bxd6 {[%clk 0:02:51.7]} 9... Qxd6
{[%clk 0:02:48.2]} 10. O-O {[%clk 0:02:51.5]} 10... O-O {[%clk 0:02:45.6]} 11.
Nbd2 {[%clk 0:02:51]} 11... Bd7 {[%clk 0:02:44.1]} 12. Qe2 {[%clk 0:02:48.1]}
12... Rac8 {[%clk 0:02:34.7]} 13. Rae1 {[%clk 0:02:46.2]} 13... Qc7 {[%clk
0:02:28.7]} 14. Ne5 {[%clk 0:02:45.8]} 14... Be8 {[%clk 0:02:25.8]} 15. f4
{[%clk 0:02:43.6]} 15... Qb6 {[%clk 0:02:18.2]} 16. Ndf3 {[%clk 0:02:42.2]}
16... Nd7 {[%clk 0:02:00.3]} 17. Bb1 {[%clk 0:02:35.9]} 17... Nd8 {[%clk
0:01:44.9]} 18. Nxd7 {[%clk 0:02:32.8]} 18... Bxd7 {[%clk 0:01:42.5]} 19. Ne5
{[%clk 0:02:31.7]} 19... Bb5 {[%clk 0:01:37.3]} 20. Qc2 {[%clk 0:02:31.7]} 20...
f5 {[%clk 0:01:36.8]} 21. Rf3 {[%clk 0:02:26.1]} 21... Nf7 {[%clk 0:01:24.7]}
22. Nxf7 {[%clk 0:02:24.5]} 22... Rxf7 {[%clk 0:01:23.7]} 23. Rfe3 {[%clk
0:02:24.4]} 23... Bd7 {[%clk 0:01:21.9]} 24. g4 {[%clk 0:02:17.4]} 24... Qd6
{[%clk 0:01:19.2]} 25. Re5 {[%clk 0:02:11.7]} 25... g6 {[%clk 0:00:42.9]} 26.
gxf5 {[%clk 0:02:03.8]} 26... Rxf5 {[%clk 0:00:40.3]} 27. Rxf5 {[%clk
0:02:01.9]} 27... exf5 {[%clk 0:00:30]} 28. Re5 {[%clk 0:01:58.7]} 28... Re8
{[%clk 0:00:22.9]} 29. Qg2 {[%clk 0:01:58.2]} 29... Rxe5 {[%clk 0:00:21.3]} 30.
fxe5 {[%clk 0:01:57.1]} 30... Qe6 {[%clk 0:00:21.2]} 31. Bc2 {[%clk 0:01:55.7]}
31... Kg7 {[%clk 0:00:19.2]} 32. Bb3 {[%clk 0:01:54.2]} 32... Bc6 {[%clk
0:00:17.5]} 33. Kf2 {[%clk 0:01:52.8]} 33... g5 {[%clk 0:00:17.1]} 34. Qf3
{[%clk 0:01:44.4]} 34... f4 {[%clk 0:00:16.3]} 35. Bc2 {[%clk 0:01:35.4]} 35...
Bd7 {[%clk 0:00:15.2]} 36. Kg2 {[%clk 0:01:26.8]} 36... Be8 {[%clk 0:00:10.6]}
37. Bb3 {[%clk 0:01:08.6]} 37... Bg6 {[%clk 0:00:08.7]} 38. Bxd5 {[%clk
0:01:05.9]} 38... Qb6 {[%clk 0:00:08.5]} 39. b4 {[%clk 0:01:03.5]} 39... Qa6
{[%clk 0:00:07.8]} 40. e6 {[%clk 0:00:49.4]} 40... Qa3 {[%clk 0:00:04.8]} 41. e7
{[%clk 0:00:38.2]} 41... Qb2+ {[%clk 0:00:04.4]} 42. Qf2 {[%clk 0:00:37.3]}
42... Qxc3 {[%clk 0:00:04]} 43. Bxb7 {[%clk 0:00:30.7]} 43... Bf5 {[%clk
0:00:02.8]} 44. Bf3 {[%clk 0:00:26.4]} 44... Kf7 {[%clk 0:00:01.9]} 45. Qe2
{[%clk 0:00:23.9]} 45... Ke8 {[%clk 0:00:01.6]} 46. Bh5+ {[%clk 0:00:21.8]} 1-0

[Event "Betsys MČR v online bleskovém šachu 2021"]
[Site "Chess.com"]
[Date "2021.04.17"]
[Round "8"]
[White "TCTCGTGCTATG"]
[Black "TerezaRodshtein"]
[Result "0-1"]
[WhiteElo "1920"]
[BlackElo "2172"]
[TimeControl "180+1"]
[EndTime "10:21:50 PDT"]
[Termination "Uživatel TerezaRodshtein zvítězil na čas"]

1. e4 {[%clk 0:03:00.9]} 1... e5 {[%clk 0:02:58.4]} 2. Nf3 {[%clk 0:03:00.3]}
2... Nc6 {[%clk 0:02:56.4]} 3. Bc4 {[%clk 0:02:59]} 3... Nf6 {[%clk 0:02:55.3]}
4. d3 {[%clk 0:02:57.4]} 4... Bc5 {[%clk 0:02:54.5]} 5. O-O {[%clk 0:02:52.7]}
5... d6 {[%clk 0:02:53.1]} 6. Nbd2 {[%clk 0:02:52.5]} 6... a6 {[%clk 0:02:52.4]}
7. Bb3 {[%clk 0:02:52.6]} 7... Na5 {[%clk 0:02:48.8]} 8. c3 {[%clk 0:02:48.7]}
8... Nxb3 {[%clk 0:02:48.8]} 9. axb3 {[%clk 0:02:45.8]} 9... O-O {[%clk
0:02:48.2]} 10. Qc2 {[%clk 0:02:42.1]} 10... Nh5 {[%clk 0:02:42.5]} 11. d4
{[%clk 0:02:38.6]} 11... exd4 {[%clk 0:02:34.8]} 12. cxd4 {[%clk 0:02:38.3]}
12... Bb6 {[%clk 0:02:34.4]} 13. Nc4 {[%clk 0:02:35.6]} 13... Ba7 {[%clk
0:02:32.4]} 14. Bg5 {[%clk 0:02:27.9]} 14... Qd7 {[%clk 0:02:17.6]} 15. e5
{[%clk 0:02:15.5]} 15... h6 {[%clk 0:02:02.2]} 16. Bd2 {[%clk 0:01:57.9]} 16...
d5 {[%clk 0:01:55.9]} 17. Ne3 {[%clk 0:01:55.5]} 17... Nf4 {[%clk 0:01:51.5]}
18. Rfe1 {[%clk 0:01:49.4]} 18... Qe6 {[%clk 0:01:37.3]} 19. Qxc7 {[%clk
0:01:33]} 19... Qg6 {[%clk 0:01:30.1]} 20. e6 {[%clk 0:01:05.5]} 20... Bxe6
{[%clk 0:01:25.8]} 21. Qxf4 {[%clk 0:01:03.6]} 21... Bb8 {[%clk 0:01:16.4]} 22.
Ne5 {[%clk 0:01:03.1]} 22... Qh7 {[%clk 0:01:15.8]} 23. Qf3 {[%clk 0:01:01.3]}
23... f6 {[%clk 0:01:11.6]} 24. N5g4 {[%clk 0:00:42]} 24... h5 {[%clk
0:01:11.3]} 25. Nxf6+ {[%clk 0:00:31]} 25... Rxf6 {[%clk 0:01:08.7]} 26. Qe2
{[%clk 0:00:30.6]} 26... Bc7 {[%clk 0:00:54.3]} 27. Rac1 {[%clk 0:00:30]} 27...
Bb6 {[%clk 0:00:52.7]} 28. Nc2 {[%clk 0:00:25.5]} 28... Raf8 {[%clk 0:00:50.9]}
29. Be3 {[%clk 0:00:22.9]} 29... Bg4 {[%clk 0:00:46.2]} 30. Qd2 {[%clk
0:00:21.6]} 30... h4 {[%clk 0:00:39.4]} 31. Nb4 {[%clk 0:00:20.6]} 31... Qf5
{[%clk 0:00:30.7]} 32. f3 {[%clk 0:00:18.1]} 32... Bh5 {[%clk 0:00:29.9]} 33.
Bf2 {[%clk 0:00:15.4]} 33... Rg6 {[%clk 0:00:20]} 34. Re5 {[%clk 0:00:14.6]}
34... Qxf3 {[%clk 0:00:19.3]} 35. Bxh4 {[%clk 0:00:11.4]} 35... Qg4 {[%clk
0:00:16.5]} 36. Bg3 {[%clk 0:00:09.7]} 36... Bc7 {[%clk 0:00:16.2]} 37. Rxd5
{[%clk 0:00:07.6]} 37... Bxg3 {[%clk 0:00:16.3]} 38. hxg3 {[%clk 0:00:07.3]}
38... Qxg3 {[%clk 0:00:16.6]} 39. Re5 {[%clk 0:00:07.3]} 39... Bf3 {[%clk
0:00:16.3]} 40. Rc2 {[%clk 0:00:05.9]} 40... Qh3 {[%clk 0:00:12]} 41. Nd5 {[%clk
0:00:03.9]} 41... Bxg2 {[%clk 0:00:11.6]} 42. Qxg2 {[%clk 0:00:03.5]} 42...
Rxg2+ {[%clk 0:00:11.6]} 43. Rxg2 {[%clk 0:00:03]} 43... Qf3 {[%clk 0:00:11.4]}
44. Ne7+ {[%clk 0:00:01.6]} 44... Kf7 {[%clk 0:00:11.2]} 0-1

[Event "Betsys MČR v online bleskovém šachu 2021"]
[Site "Chess.com"]
[Date "2021.04.17"]
[Round "8"]
[White "Marcus_Aurelius_CZ"]
[Black "czechfant94"]
[Result "1/2-1/2"]
[WhiteElo "1411"]
[BlackElo "1592"]
[TimeControl "180+1"]
[EndTime "10:21:51 PDT"]
[Termination "Remíza – nedostatek materiálu"]

1. e4 {[%clk 0:03:00.9]} 1... e5 {[%clk 0:02:58.9]} 2. Nf3 {[%clk 0:03:00.9]}
2... Nc6 {[%clk 0:02:59.2]} 3. Bc4 {[%clk 0:03:01]} 3... Bc5 {[%clk 0:02:59.4]}
4. d3 {[%clk 0:03:00.7]} 4... Nf6 {[%clk 0:02:59.3]} 5. Nc3 {[%clk 0:03:01.1]}
5... h6 {[%clk 0:02:59.5]} 6. Be3 {[%clk 0:03:00.7]} 6... Bb6 {[%clk 0:02:57.5]}
7. h3 {[%clk 0:03:00.3]} 7... d6 {[%clk 0:02:57.4]} 8. Nd5 {[%clk 0:03:00.1]}
8... Nxd5 {[%clk 0:02:53]} 9. Bxd5 {[%clk 0:02:59.8]} 9... Bd7 {[%clk
0:02:52.5]} 10. Bxb6 {[%clk 0:02:57.1]} 10... axb6 {[%clk 0:02:52.2]} 11. O-O
{[%clk 0:02:56.7]} 11... O-O {[%clk 0:02:50.4]} 12. Nh2 {[%clk 0:02:54.8]} 12...
Rb8 {[%clk 0:02:49.6]} 13. f4 {[%clk 0:02:53.3]} 13... Ne7 {[%clk 0:02:42.9]}
14. fxe5 {[%clk 0:02:49.5]} 14... Nxd5 {[%clk 0:02:42.5]} 15. exd5 {[%clk
0:02:49.3]} 15... dxe5 {[%clk 0:02:42.3]} 16. c4 {[%clk 0:02:47.2]} 16... b5
{[%clk 0:02:41.5]} 17. b3 {[%clk 0:02:46.6]} 17... bxc4 {[%clk 0:02:40.8]} 18.
dxc4 {[%clk 0:02:45.9]} 18... c6 {[%clk 0:02:41.3]} 19. dxc6 {[%clk 0:02:37.3]}
19... Bxc6 {[%clk 0:02:41.3]} 20. Qxd8 {[%clk 0:02:35.1]} 20... Rbxd8 {[%clk
0:02:40.2]} 21. Nf3 {[%clk 0:02:33.7]} 21... Bxf3 {[%clk 0:02:37.3]} 22. Rxf3
{[%clk 0:02:32.7]} 22... Rd2 {[%clk 0:02:37.2]} 23. Rf2 {[%clk 0:02:32.6]} 23...
Rfd8 {[%clk 0:02:35.8]} 24. Re1 {[%clk 0:02:26.9]} 24... f6 {[%clk 0:02:35.6]}
25. Ree2 {[%clk 0:02:22.9]} 25... Rd1+ {[%clk 0:02:29]} 26. Kh2 {[%clk
0:02:22.5]} 26... R8d3 {[%clk 0:02:25.8]} 27. Rf3 {[%clk 0:02:05.5]} 27... Rxf3
{[%clk 0:02:25.4]} 28. gxf3 {[%clk 0:02:05.2]} 28... Kf7 {[%clk 0:02:26.3]} 29.
Kg3 {[%clk 0:02:04.9]} 29... Rd3 {[%clk 0:02:23.5]} 30. Kf2 {[%clk 0:02:02.7]}
30... Ke6 {[%clk 0:02:21.3]} 31. Rb2 {[%clk 0:01:57.6]} 31... Kd6 {[%clk
0:02:18.5]} 32. Ke2 {[%clk 0:01:50.7]} 32... Rd4 {[%clk 0:02:17.2]} 33. Ke3
{[%clk 0:01:47.7]} 33... Kc5 {[%clk 0:02:15.1]} 34. a3 {[%clk 0:01:47.1]} 34...
f5 {[%clk 0:02:07.7]} 35. Rc2 {[%clk 0:01:45.3]} 35... Kc6 {[%clk 0:01:55.4]}
36. b4 {[%clk 0:01:36.6]} 36... g5 {[%clk 0:01:51.5]} 37. Rc1 {[%clk 0:01:14.9]}
37... Rh4 {[%clk 0:01:46.9]} 38. a4 {[%clk 0:01:03.1]} 38... Rxh3 {[%clk
0:01:45.4]} 39. c5 {[%clk 0:01:01]} 39... Kc7 {[%clk 0:01:40.4]} 40. b5 {[%clk
0:00:59.9]} 40... Rh4 {[%clk 0:01:40.1]} 41. Ra1 {[%clk 0:00:50.5]} 41... Rc4
{[%clk 0:01:39.4]} 42. Rh1 {[%clk 0:00:36.8]} 42... Rxc5 {[%clk 0:01:33.9]} 43.
Rxh6 {[%clk 0:00:34.6]} 43... Rc4 {[%clk 0:01:32.2]} 44. a5 {[%clk 0:00:32.7]}
44... b6 {[%clk 0:01:25.3]} 45. Rxb6 {[%clk 0:00:29.4]} 45... f4+ {[%clk
0:01:20.5]} 46. Kf2 {[%clk 0:00:27.4]} 46... Ra4 {[%clk 0:01:20.6]} 47. Rc6+
{[%clk 0:00:26.1]} 47... Kd7 {[%clk 0:01:19.1]} 48. a6 {[%clk 0:00:21.3]} 48...
Ra5 {[%clk 0:01:19.2]} 49. Rc5 {[%clk 0:00:20.9]} 49... Kd6 {[%clk 0:01:17.9]}
50. Rc6+ {[%clk 0:00:20.1]} 50... Kd7 {[%clk 0:01:17.9]} 51. Rb6 {[%clk
0:00:20.1]} 51... Kc7 {[%clk 0:01:17.4]} 52. Rb7+ {[%clk 0:00:20.5]} 52... Kc8
{[%clk 0:01:17.4]} 53. b6 {[%clk 0:00:19.2]} 53... Rxa6 {[%clk 0:01:17.3]} 54.
Rc7+ {[%clk 0:00:18.7]} 54... Kd8 {[%clk 0:01:17]} 55. Rc5 {[%clk 0:00:17.9]}
55... Rxb6 {[%clk 0:01:14.8]} 56. Rxe5 {[%clk 0:00:18.4]} 56... Rg6 {[%clk
0:01:15.3]} 57. Ke2 {[%clk 0:00:17]} 57... Kd7 {[%clk 0:01:15.4]} 58. Rf5 {[%clk
0:00:16.4]} 58... Ke6 {[%clk 0:01:15.3]} 59. Rf8 {[%clk 0:00:15.5]} 59... Rf6
{[%clk 0:01:10.4]} 60. Rg8 {[%clk 0:00:15]} 60... Rf5 {[%clk 0:01:09.7]} 61.
Rg6+ {[%clk 0:00:13.8]} 61... Kf7 {[%clk 0:01:08.8]} 62. Ra6 {[%clk 0:00:13.5]}
62... Re5+ {[%clk 0:01:08.5]} 63. Kf2 {[%clk 0:00:12.9]} 63... Re6 {[%clk
0:01:08.7]} 64. Ra5 {[%clk 0:00:12.3]} 64... Rg6 {[%clk 0:01:07.5]} 65. Re5
{[%clk 0:00:11]} 65... g4 {[%clk 0:01:05.6]} 66. Rf5+ {[%clk 0:00:10.4]} 66...
Ke6 {[%clk 0:01:03.7]} 67. Rxf4 {[%clk 0:00:10.5]} 67... gxf3 {[%clk 0:00:56.6]}
68. Rxf3 {[%clk 0:00:09.9]} 68... Rf6 {[%clk 0:00:57.3]} 69. Rxf6+ {[%clk
0:00:09.6]} 69... Kxf6 {[%clk 0:00:58.2]} 1/2-1/2

[Event "Betsys MČR v online bleskovém šachu 2021"]
[Site "Chess.com"]
[Date "2021.04.17"]
[Round "8"]
[White "Gicko13"]
[Black "Nimrod64"]
[Result "1-0"]
[WhiteElo "2102"]
[BlackElo "2252"]
[TimeControl "180+1"]
[EndTime "10:21:53 PDT"]
[Termination "Uživatel Gicko13 zvítězil na čas"]

1. e4 {[%clk 0:03:00.9]} 1... d5 {[%clk 0:02:59]} 2. exd5 {[%clk 0:03:00.9]}
2... Qxd5 {[%clk 0:02:59.5]} 3. Nc3 {[%clk 0:03:00.7]} 3... Qd6 {[%clk
0:02:59.1]} 4. d4 {[%clk 0:03:00.1]} 4... Nf6 {[%clk 0:02:58.7]} 5. Nf3 {[%clk
0:02:59.5]} 5... c6 {[%clk 0:02:59.1]} 6. Ne5 {[%clk 0:02:59.3]} 6... Nbd7
{[%clk 0:02:58.8]} 7. f4 {[%clk 0:02:59.3]} 7... Nb6 {[%clk 0:02:55.2]} 8. g4
{[%clk 0:02:52.9]} 8... Nbd5 {[%clk 0:02:44]} 9. Bg2 {[%clk 0:02:41.6]} 9... g6
{[%clk 0:02:12]} 10. g5 {[%clk 0:02:41.1]} 10... Nxc3 {[%clk 0:02:09]} 11. bxc3
{[%clk 0:02:37.8]} 11... Nd5 {[%clk 0:02:07.8]} 12. c4 {[%clk 0:01:54.8]} 12...
Nc7 {[%clk 0:02:06.9]} 13. c5 {[%clk 0:01:46.8]} 13... Qd8 {[%clk 0:02:06]} 14.
O-O {[%clk 0:01:44.5]} 14... Bg7 {[%clk 0:02:04.6]} 15. Bb2 {[%clk 0:01:21.4]}
15... O-O {[%clk 0:02:03.5]} 16. h4 {[%clk 0:01:17.8]} 16... Be6 {[%clk
0:02:00.1]} 17. h5 {[%clk 0:01:15]} 17... Bd5 {[%clk 0:01:54.8]} 18. Bh3 {[%clk
0:01:08.8]} 18... f6 {[%clk 0:01:43.4]} 19. gxf6 {[%clk 0:00:21.8]} 19... exf6
{[%clk 0:01:41]} 20. Nd3 {[%clk 0:00:21]} 20... Qe7 {[%clk 0:01:29.7]} 21. Qe1
{[%clk 0:00:17.6]} 21... Rae8 {[%clk 0:01:21.9]} 22. Qg3 {[%clk 0:00:16.7]}
22... gxh5 {[%clk 0:01:11.5]} 23. Rae1 {[%clk 0:00:15.2]} 23... Qf7 {[%clk
0:01:10.2]} 24. f5 {[%clk 0:00:14.8]} 24... Bxa2 {[%clk 0:01:03.7]} 25. Nf4
{[%clk 0:00:13.9]} 25... Rxe1 {[%clk 0:00:55.7]} 26. Rxe1 {[%clk 0:00:13.8]}
26... Re8 {[%clk 0:00:55]} 27. Rf1 {[%clk 0:00:09.6]} 27... Bc4 {[%clk
0:00:46.9]} 28. Rf2 {[%clk 0:00:09.1]} 28... Kh8 {[%clk 0:00:32]} 29. Kh2 {[%clk
0:00:09]} 29... Bh6 {[%clk 0:00:29.1]} 30. Rg2 {[%clk 0:00:07.4]} 30... Bxf4
{[%clk 0:00:28]} 31. Qxf4 {[%clk 0:00:08.3]} 31... Nd5 {[%clk 0:00:26.3]} 32.
Qf3 {[%clk 0:00:07.6]} 32... Rg8 {[%clk 0:00:22.3]} 33. Bc1 {[%clk 0:00:07.5]}
33... Rxg2+ {[%clk 0:00:20.7]} 34. Bxg2 {[%clk 0:00:08.4]} 34... a5 {[%clk
0:00:18.8]} 35. Qg3 {[%clk 0:00:08.3]} 35... Qe8 {[%clk 0:00:15.9]} 36. Bh6
{[%clk 0:00:07.3]} 36... Qg8 {[%clk 0:00:12.5]} 37. Qd6 {[%clk 0:00:07.3]} 37...
h4 {[%clk 0:00:04.6]} 38. Bxd5 {[%clk 0:00:05.9]} 38... Qg3+ {[%clk 0:00:04.1]}
39. Qxg3 {[%clk 0:00:05.8]} 39... hxg3+ {[%clk 0:00:04.1]} 40. Kxg3 {[%clk
0:00:06.3]} 40... cxd5 {[%clk 0:00:03.6]} 41. Bd2 {[%clk 0:00:05.5]} 41... a4
{[%clk 0:00:02.8]} 42. Bc1 {[%clk 0:00:05.5]} 42... Kg8 {[%clk 0:00:03]} 43. Kg4
{[%clk 0:00:05.5]} 43... Kg7 {[%clk 0:00:01]} 44. Kh5 {[%clk 0:00:04.9]} 1-0

[Event "Betsys MČR v online bleskovém šachu 2021"]
[Site "Chess.com"]
[Date "2021.04.17"]
[Round "8"]
[White "iDarkTraveler"]
[Black "Bohous13"]
[Result "0-1"]
[WhiteElo "1955"]
[BlackElo "2209"]
[TimeControl "180+1"]
[EndTime "10:21:53 PDT"]
[Termination "Uživatel Bohous13 zvítězil po vzdání soupeře"]

1. e4 {[%clk 0:02:59.7]} 1... e6 {[%clk 0:03:00.2]} 2. Nc3 {[%clk 0:02:58.7]}
2... d5 {[%clk 0:03:00.7]} 3. d4 {[%clk 0:02:59]} 3... dxe4 {[%clk 0:03:00.8]}
4. Nxe4 {[%clk 0:02:59.4]} 4... Nd7 {[%clk 0:03:01.5]} 5. Nf3 {[%clk 0:02:58]}
5... Ngf6 {[%clk 0:03:01.9]} 6. Bd3 {[%clk 0:02:55.3]} 6... Be7 {[%clk
0:03:01.9]} 7. O-O {[%clk 0:02:54.5]} 7... b6 {[%clk 0:03:02]} 8. c4 {[%clk
0:02:45.6]} 8... Bb7 {[%clk 0:03:01.8]} 9. Qe2 {[%clk 0:02:39.7]} 9... O-O
{[%clk 0:03:01.5]} 10. b3 {[%clk 0:02:39.1]} 10... Re8 {[%clk 0:02:56.5]} 11.
Bb2 {[%clk 0:02:38.7]} 11... Nf8 {[%clk 0:02:56.7]} 12. Rfe1 {[%clk 0:02:32.7]}
12... Ng6 {[%clk 0:02:56.4]} 13. Nxf6+ {[%clk 0:02:16.7]} 13... Bxf6 {[%clk
0:02:55.5]} 14. Bxg6 {[%clk 0:02:15.7]} 14... hxg6 {[%clk 0:02:54.5]} 15. Rad1
{[%clk 0:02:15.9]} 15... Qe7 {[%clk 0:02:47.8]} 16. Qc2 {[%clk 0:01:48.3]} 16...
Bxf3 {[%clk 0:02:37.4]} 17. gxf3 {[%clk 0:01:49.2]} 17... Qd6 {[%clk 0:02:28.9]}
18. Qe4 {[%clk 0:01:43.5]} 18... Rad8 {[%clk 0:02:28.2]} 19. Ba1 {[%clk
0:01:17.5]} 19... Qa3 {[%clk 0:02:24.8]} 20. d5 {[%clk 0:01:05.7]} 20... exd5
{[%clk 0:01:42]} 21. Qxe8+ {[%clk 0:01:02.5]} 21... Rxe8 {[%clk 0:01:42.2]} 22.
Rxe8+ {[%clk 0:01:03.4]} 22... Kh7 {[%clk 0:01:42.5]} 23. Bxf6 {[%clk
0:01:03.5]} 23... gxf6 {[%clk 0:01:41.9]} 24. Rxd5 {[%clk 0:00:49.4]} 24... Qxa2
{[%clk 0:01:09.4]} 25. Re7 {[%clk 0:00:39.6]} 25... Kg7 {[%clk 0:01:07.8]} 26.
Rdd7 {[%clk 0:00:37.5]} 26... Kh6 {[%clk 0:00:56.6]} 27. Rxf7 {[%clk 0:00:34.3]}
27... Kg5 {[%clk 0:00:52.4]} 28. Rxc7 {[%clk 0:00:31.5]} 28... Qxb3 {[%clk
0:00:51.8]} 29. Kg2 {[%clk 0:00:31.5]} 29... a5 {[%clk 0:00:50.5]} 30. Rc6
{[%clk 0:00:25.5]} 30... Qb2 {[%clk 0:00:43.1]} 31. h4+ {[%clk 0:00:16.6]} 31...
Kf5 {[%clk 0:00:39.2]} 32. Rd7 {[%clk 0:00:08.6]} 32... g5 {[%clk 0:00:31.4]}
33. Rd5+ {[%clk 0:00:08.2]} 33... Kg6 {[%clk 0:00:30.6]} 34. hxg5 {[%clk
0:00:08]} 34... a4 {[%clk 0:00:27.6]} 35. Rxf6+ {[%clk 0:00:07.1]} 35... Kg7
{[%clk 0:00:26.9]} 36. Rdd6 {[%clk 0:00:04.6]} 36... Qe5 {[%clk 0:00:23.3]} 37.
Rd7+ {[%clk 0:00:02.7]} 37... Kg8 {[%clk 0:00:23]} 38. Rg6+ {[%clk 0:00:02.3]}
38... Kf8 {[%clk 0:00:21.6]} 39. Rdg7 {[%clk 0:00:01.2]} 39... Qxg7 {[%clk
0:00:15.5]} 40. Rxg7 {[%clk 0:00:02.1]} 40... Kxg7 {[%clk 0:00:15.8]} 41. f4
{[%clk 0:00:02.5]} 41... a3 {[%clk 0:00:16.2]} 42. f5 {[%clk 0:00:03.4]} 42...
a2 {[%clk 0:00:16.4]} 43. f6+ {[%clk 0:00:03.9]} 43... Kg6 {[%clk 0:00:16.2]}
44. f4 {[%clk 0:00:04.1]} 44... a1=Q {[%clk 0:00:14.5]} 45. Kg3 {[%clk 0:00:05]}
45... Qc3+ {[%clk 0:00:12.8]} 46. Kg4 {[%clk 0:00:04.9]} 46... Qxc4 {[%clk
0:00:11.2]} 0-1